[Event "Gibraltar Amateurs A 2019"]
[Site "Caleta"]
[Date "2019.01.24"]
[Round "4"]
[White "Lochte, Szilvia"]
[Black "Butusina, Samuel"]
[Result "1-0"]
[ECO "A20"]
[WhiteElo "1868"]
[BlackElo "1688"]
[Annotator "NA"]
[PlyCount "87"]
[EventDate "2019.01.18"]
[EventType "swiss"]
[EventCountry "GGB"]
[SourceTitle "playchess.com"]
[Source "ChessBase"]
[SourceQuality "1"]
[TimeControl "6600+10"]

1. c4 {[%emt 0:00:00]} c6 {[%emt 0:00:06]} 2. g3 {[%emt 0:00:26]} d5 {[%emt 0:00:04]} 3. Bg2 {[%emt 0:01:07]} e5 {[%emt 0:00:49]} 4. cxd5 {[%emt 0:04:15]} cxd5 {[%emt 0:00:10]} 5. d3 {[%emt 0:10:27]} Bc5 {[%emt 0:01:51]} 6. e3 {[%emt 0:02:57]} Nc6 {[%emt 0:06:01]} 7. Ne2 {[%emt 0:01:54]} Nge7 {[%emt 0:01:52]} 8. O-O {[%emt 0:00:54]} d4 {[%emt 0:01:54]} 9. exd4 {[%emt 0:05:45]} Nxd4 {[%emt 0:02:01]} 10. Nbc3 {[%emt 0:01:56]} Nec6 {[%emt 0:04:36]} 11. Nxd4 {[%emt 0:01:38]} Bxd4 {[%emt 0:03:23]} 12. Nb5 $15 {[%emt 0:08:36]} O-O {[%emt 0:01:01]} 13. Nxd4 {[%emt 0:01:40]} Nxd4 {[%emt 0:00:33]} 14. Be3 {[%emt 0:00:50]} f5 {[%emt 0:10:48]} 15. f4 {[%emt 0:07:09]} exf4 {[%emt 0:02:31]} 16. Rxf4 {[%emt 0:03:02]} Ne6 {[%emt 0:02:00]} 17. Qb3 {[%emt 0:01:54]} Kh8 {[%emt 0:02:02]} 18. Rf2 {[%emt 0:02:01]} Qd6 {[%emt 0:07:05]} 19. Rc1 {[%emt 0:07:26]} a5 {[%emt 0:05:18]} 20. Qc3 {[%emt 0:10:09]} Bd7 {[%emt 0:09:28]} 21. Bxb7 {[%emt 0:08:46]} Rab8 {[%emt 0:00:26]} 22. Bg2 {[%emt 0:00:39]} Rfc8 {[%emt 0:13:14]} 23. Qxa5 {[%emt 0:03:42]} Qxd3 {[%emt 0:01:56]} 24. Qe1 {[%emt 0:01:57]} Re8 {[%emt 0:02:49]} 25. Rd1 {[%emt 0:03:25]} Qb5 {[%emt 0:00:24]} 26. Qd2 {[%emt 0:00:37]} Rbd8 {[%emt 0:01:46]} 27. Qc2 {[%emt 0:01:23]} Nf8 {[%emt 0:10:50]} 28. Bg5 {[%emt 0:02:54]} Rc8 {[%emt 0:00:16]} 29. Qd3 {[%emt 0:00:45]} Qa4 {[%emt 0:01:48]} 30. a3 {[%emt 0:00:48]} Bb5 {[%emt 0:01:11]} 31. Qb1 {[%emt 0:04:32]} Qa7 {[%emt 0:04:35]} 32. Qxf5 {[%emt 0:05:10]} Re2 {[%emt 0:00:58]} 33. Bf1 {[%emt 0:00:51]} Rxb2 {[%emt 0:01:38]} 34. Bxb5 {[%emt 0:00:26]} Ne6 {[%emt 0:02:05]} 35. Rd7 {[%emt 0:04:47]} Rb1+ {[%emt 0:00:48]} 36. Qxb1 {[%emt 0:00:10]} Qa8 {[%emt 0:00:31]} 37. Bf4 {[%emt 0:00:19]} Qxa3 {[%emt 0:00:21]} 38. Bf1 {[%emt 0:00:14]} Nxf4 {[%emt 0:00:31]} 39. Rxf4 {[%emt 0:00:05]} Qe3+ {[%emt 0:00:12]} 40. Kh1 {[%emt 0:00:11]} h6 {[%emt 0:00:06]} 41. Qg6 {[%emt 0:00:07]} Rg8 {[%emt 0:00:39]} 42. Bd3 {[%emt 0:00:14]} Qc1+ {[%emt 0:00:34]} 43. Kg2 {[%emt 0:00:01]} Qb2+ {[%emt 0:00:28]} 44. Kh3 {[%emt 0:00:05]} 1-0

[Event "Gibraltar Amateurs A 2019"]
[Site "Caleta"]
[Date "2019.01.24"]
[Round "4"]
[White "Gostelow, David W"]
[Black "Stai, Sondre"]
[Result "1-0"]
[ECO "A80"]
[WhiteElo "1850"]
[BlackElo "1659"]
[Annotator "NA"]
[PlyCount "141"]
[EventDate "2019.01.18"]
[EventType "swiss"]
[EventCountry "GGB"]
[SourceTitle "playchess.com"]
[Source "ChessBase"]
[SourceQuality "1"]
[TimeControl "6600+10"]

1. d4 {[%emt 0:00:00]} f5 {[%emt 0:00:00]} 2. Nf3 {[%emt 0:00:00]} Nf6 {[%emt 0:00:02]} 3. Bf4 {[%emt 0:00:01]} e6 {[%emt 0:00:35]} 4. e3 {[%emt 0:00:17]} d5 {[%emt 0:00:37]} 5. Be2 {[%emt 0:01:54]} Be7 {[%emt 0:04:19]} 6. O-O {[%emt 0:00:16]} O-O {[%emt 0:00:22]} 7. c4 {[%emt 0:00:21]} c6 {[%emt 0:00:15]} 8. Nbd2 {[%emt 0:02:03]} Ne4 {[%emt 0:05:07]} 9. Nxe4 {[%emt 0:17:43]} fxe4 {[%emt 0:01:24]} 10. Nd2 {[%emt 0:00:46]} Bd6 {[%emt 0:23:45]} 11. Bxd6 {[%emt 0:06:03]} Qxd6 {[%emt 0:00:09]} 12. f3 {[%emt 0:05:07]} exf3 {[%emt 0:00:55]} 13. Nxf3 {[%emt 0:04:33]} Nd7 {[%emt 0:00:38]} 14. Qc2 {[%emt 0:00:20]} e5 {[%emt 0:05:43]} 15. cxd5 {[%emt 0:09:19]} cxd5 {[%emt 0:01:04]} 16. dxe5 {[%emt 0:10:21]} Nxe5 {[%emt 0:00:40]} 17. Nxe5 {[%emt 0:00:54]} Rxf1+ {[%emt 0:00:27]} 18. Rxf1 {[%emt 0:00:13]} Qxe5 {[%emt 0:00:17]} 19. Bd3 {[%emt 0:02:24]} Qxe3+ {[%emt 0:09:13]} 20. Kh1 {[%emt 0:00:15]} Bd7 {[%emt 0:00:31]} 21. Bxh7+ {[%emt 0:02:19]} Kh8 {[%emt 0:00:10]} 22. Bg6 {[%emt 0:01:59]} Qg5 {[%emt 0:12:01]} 23. Rf3 {[%emt 0:08:35]} Qe7 {[%emt 0:07:02]} 24. Qd2 {[%emt 0:07:00]} Rf8 {[%emt 0:03:55]} 25. Rxf8+ {[%emt 0:03:42]} Qxf8 {[%emt 0:00:13]} 26. h3 {[%emt 0:05:06]} Qf1+ {[%emt 0:02:53]} 27. Kh2 {[%emt 0:00:05]} Bf5 {[%emt 0:00:21]} 28. Bf7 {[%emt 0:01:45]} Be4 {[%emt 0:12:50]} 29. Bxd5 {[%emt 0:00:59]} Bxd5 {[%emt 0:00:14]} 30. Qxd5 {[%emt 0:00:02]} Qf4+ {[%emt 0:00:59]} 31. g3 {[%emt 0:00:06]} Qf2+ {[%emt 0:01:31]} 32. Qg2 {[%emt 0:00:05]} Qb6 {[%emt 0:00:07]} 33. b3 {[%emt 0:00:52]} Qb4 {[%emt 0:00:29]} 34. h4 {[%emt 0:00:21]} a5 {[%emt 0:01:37]} 35. Qe2 {[%emt 0:05:14]} b5 {[%emt 0:01:49]} 36. Kh3 {[%emt 0:00:16]} a4 {[%emt 0:00:08]} 37. Qg4 {[%emt 0:01:40]} Qa3 {[%emt 0:01:43]} 38. Qh5+ {[%emt 0:00:42]} Kg8 {[%emt 0:00:52]} 39. Qxb5 {[%emt 0:00:43]} Qxa2 {[%emt 0:00:27]} 40. Qxa4 {[%emt 0:01:42]} Qb1 {[%emt 0:00:15]} 41. Qc4+ {[%emt 0:00:09]} Kh8 {[%emt 0:00:31]} 42. Qd5 {[%emt 0:01:18]} Qf1+ {[%emt 0:00:17]} 43. Qg2 {[%emt 0:01:15]} Qf5+ {[%emt 0:00:03]} 44. g4 {[%emt 0:00:24]} Qd3+ {[%emt 0:00:30]} 45. Qg3 {[%emt 0:00:32]} Qf1+ {[%emt 0:00:09]} 46. Kh2 {[%emt 0:00:16]} Qe2+ {[%emt 0:00:29]} 47. Qg2 {[%emt 0:00:08]} Qe5+ {[%emt 0:00:15]} 48. Kh3 {[%emt 0:01:52]} Qc3+ {[%emt 0:01:16]} 49. Qg3 {[%emt 0:00:08]} Qa1 {[%emt 0:00:05]} 50. Qf3 {[%emt 0:01:08]} Qb2 {[%emt 0:00:45]} 51. g5 {[%emt 0:00:23]} Qb1 {[%emt 0:00:22]} 52. h5 {[%emt 0:00:31]} Qc2 {[%emt 0:00:51]} 53. Qf8+ {[%emt 0:00:25]} Kh7 {[%emt 0:00:24]} 54. Qf3 {[%emt 0:01:51]} g6 {[%emt 0:01:33]} 55. Qf7+ {[%emt 0:00:21]} Kh8 {[%emt 0:00:22]} 56. Qf8+ {[%emt 0:00:36]} Kh7 {[%emt 0:00:13]} 57. hxg6+ {[%emt 0:00:08]} Kxg6 {[%emt 0:01:24]} 58. Qf6+ {[%emt 0:00:03]} Kh7 {[%emt 0:00:10]} 59. Qf7+ {[%emt 0:00:32]} Kh8 {[%emt 0:00:07]} 60. Qc4 {[%emt 0:00:19]} Qf5+ {[%emt 0:00:20]} 61. Kh2 {[%emt 0:00:14]} Qxg5 {[%emt 0:02:46]} 62. b4 {[%emt 0:00:01]} Qe5+ {[%emt 0:00:11]} 63. Kg2 {[%emt 0:00:03]} Kg7 {[%emt 0:00:22]} 64. b5 {[%emt 0:00:03]} Kf6 {[%emt 0:00:19]} 65. Qc6+ {[%emt 0:00:02]} Ke7 {[%emt 0:00:47]} 66. b6 {[%emt 0:00:02]} Qd6 {[%emt 0:00:22]} 67. Qb5 {[%emt 0:00:14]} Kd8 {[%emt 0:00:23]} 68. b7 {[%emt 0:00:10]} Qb8 {[%emt 0:00:01]} 69. Qc6 {[%emt 0:00:09]} Qa7 {[%emt 0:00:23]} 70. Qc8+ {[%emt 0:00:09]} Ke7 {[%emt 0:00:01]} 71. b8=Q {[%emt 0:00:21]} 1-0

[Event "Gibraltar Amateurs A 2019"]
[Site "Caleta"]
[Date "2019.01.24"]
[Round "4"]
[White "Sahil Dhawan"]
[Black "Manukonda Arun"]
[Result "1-0"]
[ECO "A11"]
[WhiteElo "1843"]
[BlackElo "1814"]
[Annotator "NA"]
[PlyCount "49"]
[EventDate "2019.01.18"]
[EventType "swiss"]
[EventCountry "GGB"]
[SourceTitle "playchess.com"]
[Source "ChessBase"]
[SourceQuality "1"]
[TimeControl "6600+10"]

1. c4 {[%emt 0:00:00]} c6 {[%emt 0:04:16]} 2. g3 {[%emt 0:00:24]} d5 {[%emt 0:01:23]} 3. Bg2 {[%emt 0:00:06]} dxc4 {[%emt 0:05:50]} 4. Na3 {[%emt 0:01:46]} g6 {[%emt 0:12:33]} 5. Nxc4 {[%emt 0:00:27]} Bg7 {[%emt 0:00:02]} 6. Nf3 {[%emt 0:00:46]} Be6 {[%emt 0:06:14]} 7. Qc2 {[%emt 0:11:21]} Na6 $14 {[%emt 0:10:18]} 8. a3 {[%emt 0:00:00]} Nc5 {[%emt 0:02:05]} 9. O-O {[%emt 0:00:00]} Bd5 {[%emt 0:04:48]} 10. d4 {[%emt 0:09:23]} Be4 {[%emt 0:01:20]} 11. Qc3 {[%emt 0:07:07]} Bxf3 {[%emt 0:02:21]} 12. Bxf3 {[%emt 0:00:11]} Qxd4 {[%emt 0:00:49]} 13. Qc2 {[%emt 0:06:17]} Qd7 {[%emt 0:06:34]} 14. Be3 {[%emt 0:01:49]} Ne6 {[%emt 0:01:51]} 15. Na5 {[%emt 0:08:37]} Nd8 {[%emt 0:03:41]} 16. Rad1 {[%emt 0:02:57]} Qc7 {[%emt 0:04:26]} 17. Nxb7 {[%emt 0:09:11]} Kf8 {[%emt 0:07:25]} 18. Nxd8 {[%emt 0:00:00]} Rxd8 {[%emt 0:01:22]} 19. Rxd8+ {[%emt 0:00:00]} Qxd8 {[%emt 0:03:45]} 20. Bxa7 {[%emt 0:03:18]} h5 {[%emt 0:03:26]} 21. b4 {[%emt 0:00:17]} h4 {[%emt 0:00:00]} 22. Rd1 {[%emt 0:00:47]} Qc7 {[%emt 0:00:00]} 23. Qxc6 {[%emt 0:00:23]} Qxc6 {[%emt 0:00:00]} 24. Bxc6 {[%emt 0:00:00]} Be5 {[%emt 0:00:00]} 25. Bd4 {[%emt 0:00:00]} 1-0

[Event "Gibraltar Amateurs A 2019"]
[Site "Caleta"]
[Date "2019.01.24"]
[Round "4"]
[White "Carr, Jay"]
[Black "Portman, Carl S"]
[Result "0-1"]
[ECO "A25"]
[WhiteElo "1842"]
[BlackElo "1884"]
[Annotator "NA"]
[PlyCount "76"]
[EventDate "2019.01.18"]
[EventType "swiss"]
[EventCountry "GGB"]
[SourceTitle "playchess.com"]
[Source "ChessBase"]
[SourceQuality "1"]
[TimeControl "6600+10"]

1. c4 {[%emt 0:00:00]} e5 {[%emt 0:00:26]} 2. g3 {[%emt 0:00:00]} Nc6 {[%emt 0:00:13]} 3. Bg2 {[%emt 0:00:06]} f5 {[%emt 0:00:46]} 4. Nc3 {[%emt 0:00:27]} Nf6 {[%emt 0:00:38]} 5. d3 {[%emt 0:00:10]} Bb4 {[%emt 0:02:18]} 6. Bd2 {[%emt 0:00:07]} Bxc3 {[%emt 0:00:53]} 7. Bxc3 {[%emt 0:00:11]} d6 {[%emt 0:00:08]} 8. e3 {[%emt 0:09:34]} O-O {[%emt 0:02:05]} 9. Nf3 {[%emt 0:09:36]} Qe8 {[%emt 0:06:00]} 10. b4 {[%emt 0:13:38]} f4 {[%emt 0:04:14]} 11. e4 {[%emt 0:12:01]} Bg4 {[%emt 0:02:46]} 12. h3 {[%emt 0:12:42]} Bxf3 {[%emt 0:05:22]} 13. Bxf3 {[%emt 0:00:52]} fxg3 {[%emt 0:00:39]} 14. fxg3 {[%emt 0:00:54]} Nd4 {[%emt 0:07:53]} 15. O-O {[%emt 0:06:20]} Qg6 {[%emt 0:05:49]} 16. Kh2 {[%emt 0:06:54]} Nxf3+ {[%emt 0:18:34]} 17. Rxf3 {[%emt 0:00:05]} Nd7 {[%emt 0:01:05]} 18. Qe2 {[%emt 0:03:53]} Rxf3 {[%emt 0:00:17]} 19. Qxf3 {[%emt 0:00:04]} Rf8 {[%emt 0:00:11]} 20. Qe2 {[%emt 0:00:57]} Qf7 {[%emt 0:02:57]} 21. Kg2 {[%emt 0:00:18]} c6 {[%emt 0:00:41]} 22. Rf1 {[%emt 0:03:23]} Qxf1+ {[%emt 0:00:34]} 23. Qxf1 {[%emt 0:00:04]} Rxf1 {[%emt 0:00:11]} 24. Kxf1 {[%emt 0:00:01]} b5 {[%emt 0:02:08]} 25. Ke2 {[%emt 0:03:37]} Kf7 {[%emt 0:00:07]} 26. Ke3 {[%emt 0:01:25]} Ke6 {[%emt 0:00:28]} 27. cxb5 {[%emt 0:07:29]} cxb5 {[%emt 0:00:16]} 28. d4 {[%emt 0:01:54]} a6 {[%emt 0:00:19]} 29. d5+ {[%emt 0:06:58]} Kf7 {[%emt 0:00:34]} 30. Kf3 {[%emt 0:00:36]} Nb6 {[%emt 0:05:56]} 31. g4 {[%emt 0:02:20]} Nc4 {[%emt 0:01:24]} 32. Be1 {[%emt 0:01:01]} Na3 {[%emt 0:01:01]} 33. Bc3 {[%emt 0:00:53]} Nc4 {[%emt 0:00:12]} 34. Be1 {[%emt 0:00:07]} Na3 {[%emt 0:00:40]} 35. Bc3 {[%emt 0:00:42]} Nc2 {[%emt 0:15:44]} 36. Ke2 {[%emt 0:00:12]} g6 {[%emt 0:06:03]} 37. Kd3 {[%emt 0:00:37]} Na3 {[%emt 0:00:15]} 38. Bd2 {[%emt 0:00:23]} Nc4 {[%emt 0:00:08]} 0-1

[Event "Gibraltar Amateurs A 2019"]
[Site "Caleta"]
[Date "2019.01.24"]
[Round "4"]
[White "Olaizola, Miguel"]
[Black "Mircov, Nicola-Alexandar"]
[Result "0-1"]
[ECO "D34"]
[WhiteElo "1831"]
[BlackElo "1797"]
[Annotator "NA"]
[PlyCount "83"]
[EventDate "2019.01.18"]
[EventType "swiss"]
[EventCountry "GGB"]
[SourceTitle "playchess.com"]
[Source "ChessBase"]
[SourceQuality "1"]
[TimeControl "6600+10"]

1. Nf3 {[%emt 0:05:53]} c5 {[%emt 0:05:48]} 2. g3 {[%emt 0:00:30]} d5 {[%emt 0:00:27]} 3. Bg2 {[%emt 0:00:12]} Nc6 {[%emt 0:00:12]} 4. d4 {[%emt 0:01:13]} e6 {[%emt 0:02:20]} 5. O-O {[%emt 0:00:11]} Nf6 {[%emt 0:00:12]} 6. c4 {[%emt 0:00:14]} Be7 {[%emt 0:00:32]} 7. Nc3 {[%emt 0:02:44]} O-O {[%emt 0:00:35]} 8. cxd5 {[%emt 0:02:23]} exd5 {[%emt 0:00:13]} 9. dxc5 {[%emt 0:00:15]} Bxc5 {[%emt 0:00:20]} 10. Na4 {[%emt 0:00:31]} Be7 {[%emt 0:00:13]} 11. b3 {[%emt 0:00:55]} Bg4 {[%emt 0:09:40]} 12. Bb2 {[%emt 0:01:32]} Rc8 {[%emt 0:01:25]} 13. h3 {[%emt 0:05:36]} Bf5 {[%emt 0:02:56]} 14. Rc1 {[%emt 0:01:20]} Re8 {[%emt 0:03:36]} 15. Nc5 {[%emt 0:08:18]} Nb4 {[%emt 0:04:44]} 16. Nh4 {[%emt 0:33:40]} Bc2 {[%emt 0:05:39]} 17. Qd2 {[%emt 0:07:18]} Bxc5 {[%emt 0:04:01]} 18. a3 {[%emt 0:00:37]} Ne4 {[%emt 0:04:00]} 19. Bxe4 {[%emt 0:01:19]} dxe4 {[%emt 0:00:54]} 20. Qxd8 {[%emt 0:00:58]} Rexd8 {[%emt 0:00:27]} 21. axb4 {[%emt 0:00:55]} Bxb4 {[%emt 0:00:12]} 22. Ra1 {[%emt 0:02:27]} a5 {[%emt 0:06:30]} 23. Nf5 {[%emt 0:09:20]} Bxb3 {[%emt 0:08:36]} 24. Bxg7 {[%emt 0:02:14]} Be6 {[%emt 0:01:01]} 25. Bf6 {[%emt 0:02:12]} Bxf5 {[%emt 0:00:37]} 26. Bxd8 {[%emt 0:00:14]} Rxd8 {[%emt 0:00:02]} 27. g4 {[%emt 0:01:25]} Be6 {[%emt 0:00:22]} 28. Rfc1 {[%emt 0:02:18]} b5 {[%emt 0:01:10]} 29. Rc6 {[%emt 0:03:15]} Bc4 {[%emt 0:01:38]} 30. e3 {[%emt 0:01:48]} Bc3 {[%emt 0:02:09]} 31. Rc1 {[%emt 0:01:33]} Rd3 {[%emt 0:00:33]} 32. g5 {[%emt 0:08:52]} a4 {[%emt 0:01:04]} 33. Ra6 {[%emt 0:01:14]} Bb2 {[%emt 0:00:45]} 34. Rc2 {[%emt 0:00:18]} a3 {[%emt 0:00:35]} 35. h4 {[%emt 0:00:28]} Rd1+ {[%emt 0:01:12]} 36. Kg2 {[%emt 0:00:19]} Rc1 {[%emt 0:05:57]} 37. Rd2 {[%emt 0:01:23]} Bd3 {[%emt 0:00:53]} 38. h5 {[%emt 0:00:08]} b4 {[%emt 0:00:36]} 39. Ra7 {[%emt 0:00:17]} b3 {[%emt 0:00:46]} 40. h6 {[%emt 0:00:04]} Kf8 {[%emt 0:00:08]} 41. Ra8+ {[%emt 0:00:07]} Ke7 {[%emt 0:00:05]} 42. Ra7+ {[%emt 0:00:21] Rc2 [%emt 00:00:32]} 0-1

[Event "Gibraltar Amateurs A 2019"]
[Site "Caleta"]
[Date "2019.01.24"]
[Round "4"]
[White "Teh, Wee Zhun"]
[Black "Anjali R. Sagar"]
[Result "1-0"]
[ECO "D85"]
[WhiteElo "1818"]
[BlackElo "1787"]
[Annotator "NA"]
[PlyCount "79"]
[EventDate "2019.01.18"]
[EventType "swiss"]
[EventCountry "GGB"]
[SourceTitle "playchess.com"]
[Source "ChessBase"]
[SourceQuality "1"]
[TimeControl "6600+10"]

1. d4 {[%emt 0:00:00]} Nf6 {[%emt 0:00:18]} 2. c4 {[%emt 0:00:05]} g6 {[%emt 0:00:13]} 3. Nc3 {[%emt 0:00:08]} d5 {[%emt 0:00:25]} 4. cxd5 {[%emt 0:00:36]} Nxd5 {[%emt 0:00:07]} 5. Na4 {[%emt 0:00:04]} Bg7 {[%emt 0:01:35]} 6. e4 {[%emt 0:01:02]} Nb6 {[%emt 0:00:53]} 7. Nf3 {[%emt 0:07:56]} Bg4 {[%emt 0:02:28]} 8. Be3 {[%emt 0:02:05]} Bxf3 {[%emt 0:08:07]} 9. gxf3 {[%emt 0:00:19]} Nxa4 {[%emt 0:00:50]} 10. Qxa4+ {[%emt 0:00:04]} Qd7 {[%emt 0:03:01]} 11. Bb5 {[%emt 0:08:40]} c6 {[%emt 0:01:42]} 12. Be2 {[%emt 0:00:13]} O-O {[%emt 0:07:14]} 13. O-O {[%emt 0:11:53]} c5 {[%emt 0:10:27]} 14. Qxd7 {[%emt 0:09:15]} Nxd7 {[%emt 0:00:09]} 15. dxc5 {[%emt 0:00:42]} Rfc8 {[%emt 0:01:52]} 16. Rac1 {[%emt 0:21:41]} Bxb2 {[%emt 0:02:13]} 17. Rb1 {[%emt 0:02:12]} Bf6 {[%emt 0:02:50]} 18. Rfc1 {[%emt 0:06:55]} b6 {[%emt 0:06:47]} 19. c6 {[%emt 0:10:17]} Nf8 {[%emt 0:05:37]} 20. f4 {[%emt 0:06:41]} Ne6 {[%emt 0:12:58]} 21. e5 {[%emt 0:07:54]} Bg7 {[%emt 0:00:41]} 22. Ba6 {[%emt 0:02:25]} Rc7 {[%emt 0:00:47]} 23. Rd1 {[%emt 0:02:29]} Nd8 {[%emt 0:08:12]} 24. Rd7 {[%emt 0:00:54]} Rxc6 {[%emt 0:02:28]} 25. Rbd1 {[%emt 0:00:25]} Ne6 {[%emt 0:05:19]} 26. Bb7 {[%emt 0:00:14]} Rcc8 {[%emt 0:00:35]} 27. Bxc8 {[%emt 0:00:57]} Rxc8 {[%emt 0:00:02]} 28. Rxe7 {[%emt 0:00:54]} Bh6 {[%emt 0:02:58]} 29. f5 {[%emt 0:02:42]} Bf8 {[%emt 0:02:13]} 30. Rxa7 {[%emt 0:00:03]} gxf5 {[%emt 0:00:06]} 31. Bxb6 {[%emt 0:00:13]} f4 {[%emt 0:01:54]} 32. Rad7 {[%emt 0:02:31]} Bg7 {[%emt 0:02:04]} 33. R7d5 {[%emt 0:00:27]} Rc6 {[%emt 0:04:05]} 34. Bd8 {[%emt 0:00:15]} f3 {[%emt 0:07:25]} 35. Bf6 {[%emt 0:00:15]} Bf8 {[%emt 0:02:39]} 36. R5d3 {[%emt 0:00:33]} Ng5 {[%emt 0:02:41]} 37. Bxg5 {[%emt 0:00:15]} Rg6 {[%emt 0:00:12]} 38. Rxf3 {[%emt 0:00:08]} Rxg5+ {[%emt 0:00:08]} 39. Rg3 {[%emt 0:00:00]} Rxg3+ {[%emt 0:00:44]} 40. hxg3 {[%emt 0:00:01]} 1-0

[Event "Gibraltar Amateurs A 2019"]
[Site "Caleta"]
[Date "2019.01.24"]
[Round "4"]
[White "Sharma Pankaj"]
[Black "Lane, Ryan"]
[Result "0-1"]
[ECO "E92"]
[WhiteElo "1809"]
[BlackElo "1851"]
[Annotator "NA"]
[PlyCount "110"]
[EventDate "2019.01.18"]
[EventType "swiss"]
[EventCountry "GGB"]
[SourceTitle "playchess.com"]
[Source "ChessBase"]
[SourceQuality "1"]
[TimeControl "6600+10"]

1. d4 {[%emt 0:00:00]} Nf6 {[%emt 0:00:00]} 2. c4 {[%emt 0:00:00]} g6 {[%emt 0:00:02]} 3. Nc3 {[%emt 0:00:00]} Bg7 {[%emt 0:00:06]} 4. e4 {[%emt 0:00:18]} d6 {[%emt 0:00:05]} 5. Be2 {[%emt 0:00:09]} O-O {[%emt 0:00:08]} 6. Nf3 {[%emt 0:00:29]} e5 {[%emt 0:00:20]} 7. O-O {[%emt 0:00:03]} Re8 {[%emt 0:00:33]} 8. dxe5 {[%emt 0:06:57]} dxe5 {[%emt 0:00:37]} 9. Qxd8 {[%emt 0:00:15]} Rxd8 {[%emt 0:00:06]} 10. Bg5 {[%emt 0:00:15]} Re8 {[%emt 0:01:37]} 11. Rfd1 {[%emt 0:04:44]} c6 {[%emt 0:02:42]} 12. Rd6 {[%emt 0:03:53]} Nbd7 {[%emt 0:02:11]} 13. Rad1 {[%emt 0:01:21]} h6 {[%emt 0:02:51]} 14. Bxf6 {[%emt 0:04:23]} Nxf6 {[%emt 0:00:25]} 15. Rd8 {[%emt 0:01:53]} Bg4 {[%emt 0:00:47]} 16. Rxa8 {[%emt 0:00:27]} Rxa8 {[%emt 0:00:05]} 17. Kf1 $15 {[%emt 0:14:52]} Bxf3 {[%emt 0:02:19]} 18. Bxf3 {[%emt 0:00:07]} Kf8 {[%emt 0:00:03]} 19. Na4 {[%emt 0:06:24]} b6 {[%emt 0:01:53]} 20. b4 {[%emt 0:06:26]} Ke7 {[%emt 0:01:30]} 21. Ke2 {[%emt 0:03:29]} h5 {[%emt 0:01:03]} 22. Nc3 {[%emt 0:02:37]} Rd8 {[%emt 0:03:35]} 23. Rxd8 {[%emt 0:00:46]} Kxd8 {[%emt 0:00:16]} 24. Kd3 {[%emt 0:01:38]} Nd7 {[%emt 0:00:46]} 25. Bd1 {[%emt 0:01:45]} Kc7 {[%emt 0:01:32]} 26. g3 {[%emt 0:01:09]} a6 {[%emt 0:00:53]} 27. f3 {[%emt 0:09:08]} Nf8 {[%emt 0:04:34]} 28. Bb3 {[%emt 0:04:50]} f6 {[%emt 0:05:29]} 29. c5 {[%emt 0:06:02]} b5 {[%emt 0:00:10]} 30. f4 {[%emt 0:01:36]} exf4 {[%emt 0:01:49]} 31. gxf4 {[%emt 0:00:01]} Kd7 {[%emt 0:00:12]} 32. Ne2 {[%emt 0:02:56]} Bh6 {[%emt 0:02:45]} 33. f5 {[%emt 0:07:01]} g5 {[%emt 0:01:24]} 34. e5 {[%emt 0:05:10]} fxe5 {[%emt 0:01:29]} 35. Ke4 {[%emt 0:00:01]} Ke7 {[%emt 0:02:48]} 36. Kxe5 {[%emt 0:04:25]} Nd7+ {[%emt 0:00:09]} 37. Ke4 {[%emt 0:00:54]} Nf6+ {[%emt 0:06:06]} 38. Kd3 {[%emt 0:01:29]} Ng4 {[%emt 0:02:03]} 39. Nd4 {[%emt 0:00:05]} Kd7 {[%emt 0:01:08]} 40. Bd1 {[%emt 0:02:17]} Nf2+ {[%emt 0:00:38]} 41. Kc2 {[%emt 0:00:30]} Nxd1 {[%emt 0:00:53]} 42. Kxd1 {[%emt 0:00:01]} Bg7 {[%emt 0:01:09]} 43. Ne6 {[%emt 0:00:57]} Bf6 {[%emt 0:01:00]} 44. Kd2 {[%emt 0:01:14]} g4 {[%emt 0:05:38]} 45. Kd3 {[%emt 0:01:05]} Be5 {[%emt 0:01:17]} 46. Ke4 {[%emt 0:01:20]} Bxh2 {[%emt 0:00:38]} 47. Ng5 {[%emt 0:00:57]} Ke7 {[%emt 0:00:46]} 48. Nh7 {[%emt 0:00:17]} Bg3 {[%emt 0:00:51]} 49. Ng5 {[%emt 0:01:03]} h4 {[%emt 0:00:22]} 50. Ke3 {[%emt 0:00:10]} h3 {[%emt 0:00:22]} 51. f6+ {[%emt 0:00:04]} Kf8 {[%emt 0:01:17]} 52. Ne6+ {[%emt 0:00:18]} Kg8 {[%emt 0:00:19]} 53. Ke4 {[%emt 0:00:20]} Bh4 {[%emt 0:00:50]} 54. Kf5 {[%emt 0:00:15]} Bxf6 {[%emt 0:00:14]} 55. Kxg4 {[%emt 0:00:04]} h2 {[%emt 0:00:46]} 0-1

[Event "Gibraltar Amateurs A 2019"]
[Site "Caleta"]
[Date "2019.01.24"]
[Round "4"]
[White "Kovacevic, Aleksandar S"]
[Black "Savage, Neil"]
[Result "1-0"]
[ECO "A00"]
[WhiteElo "1793"]
[BlackElo "1585"]
[Annotator "NA"]
[PlyCount "81"]
[EventDate "2019.01.18"]
[EventType "swiss"]
[EventCountry "GGB"]
[SourceTitle "playchess.com"]
[Source "ChessBase"]
[SourceQuality "1"]
[TimeControl "6600+10"]

1. b4 {[%emt 0:02:03]} e5 {[%emt 0:00:32]} 2. a3 {[%emt 0:00:39]} d5 {[%emt 0:00:56]} 3. Bb2 {[%emt 0:00:38]} Bd6 {[%emt 0:00:53]} 4. e3 {[%emt 0:00:12]} Nf6 {[%emt 0:01:13]} 5. Nf3 {[%emt 0:00:29]} Qe7 {[%emt 0:00:50]} 6. c4 {[%emt 0:00:31]} c6 {[%emt 0:01:37]} 7. cxd5 {[%emt 0:00:25]} cxd5 {[%emt 0:03:07]} 8. Nc3 {[%emt 0:00:31]} O-O {[%emt 0:04:47]} 9. Nb5 {[%emt 0:00:16]} Nbd7 {[%emt 0:11:00]} 10. Nxd6 {[%emt 0:01:39]} Qxd6 {[%emt 0:00:04]} 11. Be2 {[%emt 0:01:39]} a6 {[%emt 0:04:08]} 12. Qc2 {[%emt 0:01:47]} b5 {[%emt 0:02:25]} 13. h4 {[%emt 0:00:40]} Bb7 {[%emt 0:05:40]} 14. Qf5 {[%emt 0:02:28]} d4 {[%emt 0:10:49]} 15. exd4 {[%emt 0:00:53]} exd4 {[%emt 0:06:13]} 16. O-O {[%emt 0:01:13]} Be4 {[%emt 0:01:27]} 17. Qh3 {[%emt 0:02:29]} Nd5 {[%emt 0:01:45]} 18. Nxd4 {[%emt 0:09:52]} Nf4 {[%emt 0:03:43]} 19. Qg3 {[%emt 0:01:25]} Qxd4 {[%emt 0:03:45]} 20. Qxf4 {[%emt 0:01:41]} Qxb2 {[%emt 0:00:24]} 21. Qxe4 {[%emt 0:00:23]} Qxd2 {[%emt 0:00:20]} 22. Rfd1 {[%emt 0:05:27]} Nf6 {[%emt 0:05:03]} 23. Qxh7+ {[%emt 0:03:58]} Kxh7 {[%emt 0:01:59]} 24. Rxd2 {[%emt 0:00:10]} Rfe8 {[%emt 0:02:04]} 25. Bf3 {[%emt 0:06:05]} Ra7 {[%emt 0:03:50]} 26. Rc1 {[%emt 0:00:50]} Re6 {[%emt 0:06:38]} 27. Rdc2 {[%emt 0:02:47]} Rd7 {[%emt 0:05:09]} 28. Kh2 {[%emt 0:03:20]} Rd3 {[%emt 0:01:58]} 29. Rc3 {[%emt 0:00:17]} Red6 {[%emt 0:01:15]} 30. g4 {[%emt 0:05:23]} R6d4 {[%emt 0:05:05]} 31. g5 {[%emt 0:08:23]} Rxh4+ {[%emt 0:01:52]} 32. Kg2 {[%emt 0:00:19]} Rxc3 {[%emt 0:01:16]} 33. Rxc3 {[%emt 0:00:02]} Ne4 {[%emt 0:01:33]} 34. Rc6 {[%emt 0:01:54]} Nxg5 {[%emt 0:01:07]} 35. Rxa6 {[%emt 0:00:40]} Nxf3 {[%emt 0:01:11]} 36. Kxf3 {[%emt 0:00:02]} Rh6 {[%emt 0:03:59]} 37. Ra7 {[%emt 0:01:14]} Rf6+ {[%emt 0:00:29]} 38. Ke3 {[%emt 0:00:26]} Kh6 {[%emt 0:00:18]} 39. Ra5 {[%emt 0:01:09]} Rf5 {[%emt 0:00:22]} 40. a4 {[%emt 0:00:26]} g5 {[%emt 0:02:19]} 41. Rxb5 {[%emt 0:00:51]} 1-0